[Event "Grandmaster Triathlon - Blitz (GM1)"]
[Site "Biel, Switzerland"]
[Date "2026.07.19"]
[Round "8.1"]
[White "Aronian, Levon"]
[Black "Suleymanli, Aydin"]
[Result "1-0"]
[TimeControl "3 min + 2 sec"]
[WhiteTitle "-"]
[BlackTitle "-"]
[WhiteFideId "13300474"]
[BlackFideId "13413937"]
[WhiteElo "2700"]
[BlackElo "2559"]

1. e4 {[%clk 00:03:03]} c6 {[%clk 00:03:03]} 2. d4 {[%clk 00:02:55]} {[%emt
00:00:10]} d5 {[%clk 00:03:04]} {[%emt 00:00:01]} 3. e5 {[%clk 00:02:55]}
{[%emt 00:00:02]} c5 {[%clk 00:03:06]} 4. dxc5 {[%clk 00:02:53]} {[%emt
00:00:04]} e6 {[%clk 00:03:07]} {[%emt 00:00:01]} 5. Qh5 {[%clk 00:02:53]}
{[%emt 00:00:02]} Nc6 {[%clk 00:03:03]} {[%emt 00:00:06]} 6. Nf3 {[%clk
00:02:52]} {[%emt 00:00:03]} Bxc5 {[%clk 00:02:57]} {[%emt 00:00:08]} 7. Bd3
{[%clk 00:02:53]} {[%emt 00:00:01]} h6 {[%clk 00:02:47]} {[%emt 00:00:12]} 8.
Nc3 {[%clk 00:02:43]} {[%emt 00:00:12]} a6 {[%clk 00:02:38]} {[%emt 00:00:11]}
9. Qg4 {[%clk 00:02:24]} {[%emt 00:00:21]} Kf8 {[%clk 00:02:31]} {[%emt
00:00:10]} 10. a3 {[%clk 00:02:18]} {[%emt 00:00:07]} f5 {[%clk 00:02:26]}
{[%emt 00:00:06]} 11. exf6 {[%clk 00:02:10]} {[%emt 00:00:11]} Nxf6 {[%clk
00:01:59]} {[%emt 00:00:29]} 12. Qg3 {[%clk 00:02:11]} {[%emt 00:00:01]} Bd6
{[%clk 00:01:42]} {[%emt 00:00:19]} 13. Qh4 {[%clk 00:01:38]} {[%emt 00:00:35]}
e5 {[%clk 00:01:40]} {[%emt 00:00:04]} 14. Bg5 {[%clk 00:01:39]} {[%emt
00:00:01]} e4 {[%clk 00:01:17]} {[%emt 00:00:25]} 15. Nxd5 {[%clk 00:01:40]}
{[%emt 00:00:01]} Qa5+ {[%clk 00:01:13]} {[%emt 00:00:06]} 16. Nc3 {[%clk
00:01:40]} {[%emt 00:00:01]} exd3 {[%clk 00:00:47]} {[%emt 00:00:28]} 17. Bxf6
{[%clk 00:01:42]} dxc2 {[%clk 00:00:39]} {[%emt 00:00:10]} 18. O-O {[%clk
00:01:42]} {[%emt 00:00:02]} Qf5 {[%clk 00:00:36]} {[%emt 00:00:04]} 19. Bd4
{[%clk 00:01:21]} {[%emt 00:00:23]} Qg4 {[%clk 00:00:23]} {[%emt 00:00:15]} 20.
Be3 {[%clk 00:01:11]} {[%emt 00:00:13]} Qxh4 {[%clk 00:00:23]} {[%emt
00:00:02]} 21. Nxh4 {[%clk 00:01:12]} Kf7 {[%clk 00:00:22]} {[%emt 00:00:03]}
22. Rac1 {[%clk 00:01:08]} {[%emt 00:00:06]} g5 {[%clk 00:00:23]} 23. Nf3
{[%clk 00:01:10]} Bf5 {[%clk 00:00:24]} 24. Ne1 {[%clk 00:01:11]} Rac8 {[%clk
00:00:19]} {[%emt 00:00:07]} 25. Nxc2 {[%clk 00:01:12]} {[%emt 00:00:02]} Ne5
{[%clk 00:00:12]} {[%emt 00:00:09]} 26. Nd4 {[%clk 00:01:05]} {[%emt 00:00:09]}
Bg6 {[%clk 00:00:05]} {[%emt 00:00:09]} 27. f4 {[%clk 00:01:06]} Nd3 {[%clk
00:00:03]} {[%emt 00:00:03]} 28. fxg5+ {[%clk 00:01:03]} {[%emt 00:00:05]} Kg8
{[%clk 00:00:05]} 29. Rf6 {[%clk 00:01:01]} {[%emt 00:00:04]} Be5 {[%clk
00:00:05]} {[%emt 00:00:02]} 30. Rxg6+ {[%clk 00:01:02]} {[%emt 00:00:02]} Kf7
{[%clk 00:00:06]} 31. Rf6+ {[%clk 00:00:49]} {[%emt 00:00:15]} Bxf6 {[%clk
00:00:05]} {[%emt 00:00:03]} 32. Rf1 {[%clk 00:00:48]} {[%emt 00:00:02]} hxg5
{[%clk 00:00:06]} {[%emt 00:00:02]} 33. Bxg5 {[%clk 00:00:50]} Kg6 {[%clk
00:00:04]} {[%emt 00:00:03]} 34. Bxf6 {[%clk 00:00:48]} {[%emt 00:00:04]} Rhf8
{[%clk 00:00:06]} 35. Nd5 {[%clk 00:00:44]} {[%emt 00:00:07]} Rc5 {[%clk
00:00:05]} {[%emt 00:00:03]} 36. Ne6 {[%clk 00:00:45]} {[%emt 00:00:01]} 1-0

[Event "Grandmaster Triathlon - Blitz (GM1)"]
[Site "Biel, Switzerland"]
[Date "2026.07.19"]
[Round "8.2"]
[White "Erdogmus, Yagiz Kaan"]
[Black "Martinez Alcantara, Jose Eduardo"]
[Result "0-1"]
[TimeControl "3 min + 2 sec"]
[WhiteTitle "-"]
[BlackTitle "-"]
[WhiteFideId "44599790"]
[BlackFideId "3805662"]
[WhiteElo "2546"]
[BlackElo "2641"]

1. e4 {[%clk 00:03:02]} {[%emt 00:07:40]} c5 {[%clk 00:03:04]} {[%emt
00:00:01]} 2. b3 {[%clk 00:03:05]} b6 {[%clk 00:03:04]} {[%emt 00:00:02]} 3.
Bb2 {[%clk 00:03:03]} {[%emt 00:00:04]} Bb7 {[%clk 00:03:05]} 4. Nc3 {[%clk
00:03:05]} Nc6 {[%clk 00:03:00]} {[%emt 00:00:07]} 5. Nf3 {[%clk 00:03:01]}
{[%emt 00:00:05]} e5 {[%clk 00:02:58]} {[%emt 00:00:04]} 6. Bc4 {[%clk
00:02:44]} {[%emt 00:00:19]} d6 {[%clk 00:02:55]} {[%emt 00:00:05]} 7. O-O
{[%clk 00:02:14]} {[%emt 00:00:31]} Be7 {[%clk 00:02:56]} {[%emt 00:00:01]} 8.
Nd5 {[%clk 00:02:07]} {[%emt 00:00:09]} Nf6 {[%clk 00:02:55]} {[%emt 00:00:03]}
9. Re1 {[%clk 00:01:53]} {[%emt 00:00:16]} O-O {[%clk 00:02:50]} {[%emt
00:00:06]} 10. c3 {[%clk 00:01:47]} {[%emt 00:00:08]} Na5 {[%clk 00:02:33]}
{[%emt 00:00:19]} 11. Nxe7+ {[%clk 00:01:34]} {[%emt 00:00:15]} Qxe7 {[%clk
00:02:34]} {[%emt 00:00:01]} 12. Bd3 {[%clk 00:01:35]} {[%emt 00:00:01]} Rfe8
{[%clk 00:02:20]} {[%emt 00:00:15]} 13. Bc2 {[%clk 00:01:33]} {[%emt 00:00:04]}
Qc7 {[%clk 00:02:20]} {[%emt 00:00:02]} 14. Rc1 {[%clk 00:01:25]} {[%emt
00:00:10]} Rad8 {[%clk 00:02:02]} {[%emt 00:00:20]} 15. d3 {[%clk 00:00:56]}
{[%emt 00:00:32]} d5 {[%clk 00:01:53]} {[%emt 00:00:11]} 16. Qe2 {[%clk
00:00:51]} {[%emt 00:00:06]} Nc6 {[%clk 00:01:54]} 17. Rcd1 {[%clk 00:00:51]}
{[%emt 00:00:03]} h6 {[%clk 00:01:45]} {[%emt 00:00:11]} 18. h3 {[%clk
00:00:41]} {[%emt 00:00:12]} Ba6 {[%clk 00:01:45]} {[%emt 00:00:02]} 19. c4
{[%clk 00:00:29]} {[%emt 00:00:14]} d4 {[%clk 00:01:29]} {[%emt 00:00:17]} 20.
Bc1 {[%clk 00:00:27]} {[%emt 00:00:04]} Bc8 {[%clk 00:01:22]} {[%emt 00:00:09]}
21. Rf1 {[%clk 00:00:26]} {[%emt 00:00:03]} Ne7 {[%clk 00:01:14]} {[%emt
00:00:10]} 22. Nh4 {[%clk 00:00:17]} {[%emt 00:00:11]} g5 {[%clk 00:01:15]}
{[%emt 00:00:02]} 23. Nf3 {[%clk 00:00:16]} {[%emt 00:00:03]} Ng6 {[%clk
00:01:14]} {[%emt 00:00:03]} 24. Nh2 {[%clk 00:00:16]} {[%emt 00:00:01]} a6
{[%clk 00:01:12]} {[%emt 00:00:04]} 25. Rde1 {[%clk 00:00:16]} {[%emt
00:00:02]} b5 {[%clk 00:01:12]} {[%emt 00:00:02]} 26. Bd1 {[%clk 00:00:17]}
{[%emt 00:00:01]} Bd7 {[%clk 00:01:08]} {[%emt 00:00:06]} 27. Qc2 {[%clk
00:00:16]} {[%emt 00:00:03]} Qd6 {[%clk 00:01:07]} {[%emt 00:00:04]} 28. Ng4
{[%clk 00:00:16]} {[%emt 00:00:02]} Kg7 {[%clk 00:01:00]} {[%emt 00:00:09]} 29.
g3 {[%clk 00:00:09]} {[%emt 00:00:08]} h5 {[%clk 00:00:37]} {[%emt 00:00:25]}
30. Nxf6 {[%clk 00:00:10]} Qxf6 {[%clk 00:00:38]} 31. Kg2 {[%clk 00:00:12]}
bxc4 {[%clk 00:00:39]} {[%emt 00:00:02]} 32. bxc4 {[%clk 00:00:13]} h4 {[%clk
00:00:40]} 33. Qd2 {[%clk 00:00:12]} {[%emt 00:00:03]} Rh8 {[%clk 00:00:33]}
{[%emt 00:00:09]} 34. Qxg5 {[%clk 00:00:10]} {[%emt 00:00:04]} Qxg5 {[%clk
00:00:25]} {[%emt 00:00:10]} 35. Bxg5 {[%clk 00:00:11]} hxg3 {[%clk 00:00:23]}
{[%emt 00:00:03]} 36. Bxd8 {[%clk 00:00:07]} {[%emt 00:00:06]} Bxh3+ {[%clk
00:00:15]} {[%emt 00:00:10]} 37. Kxg3 {[%clk 00:00:08]} {[%emt 00:00:01]} Bxf1
{[%clk 00:00:16]} 38. Rxf1 {[%clk 00:00:08]} {[%emt 00:00:02]} Rxd8 {[%clk
00:00:17]} {[%emt 00:00:01]} 39. Bc2 {[%clk 00:00:05]} {[%emt 00:00:05]} Rb8
{[%clk 00:00:19]} 40. Bb3 {[%clk 00:00:05]} {[%emt 00:00:02]} Nf4 {[%clk
00:00:20]} {[%emt 00:00:01]} 41. Rd1 {[%clk 00:00:05]} {[%emt 00:00:02]} Kf6
{[%clk 00:00:21]} {[%emt 00:00:01]} 42. Rh1 {[%clk 00:00:03]} {[%emt 00:00:03]}
Kg6 {[%clk 00:00:19]} {[%emt 00:00:04]} 43. Kg4 {[%clk 00:00:04]} {[%emt
00:00:01]} Nxd3 {[%clk 00:00:19]} {[%emt 00:00:03]} 44. Kf3 {[%clk 00:00:05]}
Nf4 {[%clk 00:00:18]} {[%emt 00:00:02]} 45. Kg4 {[%clk 00:00:06]} {[%emt
00:00:02]} a5 {[%clk 00:00:19]} {[%emt 00:00:01]} 46. Ba4 {[%emt 00:00:02]} Rb2
{[%clk 00:00:18]} {[%emt 00:00:03]} 47. Kf3 {[%clk 00:00:06]} {[%emt 00:00:02]}
Rxa2 {[%clk 00:00:18]} {[%emt 00:00:02]} 48. Bd7 {[%clk 00:00:07]} {[%emt
00:00:01]} Ra3+ {[%clk 00:00:18]} {[%emt 00:00:01]} 49. Kg4 {[%clk 00:00:09]}
d3 {[%clk 00:00:13]} {[%emt 00:00:08]} 50. Bf5+ {[%clk 00:00:07]} {[%emt
00:00:04]} Kf6 {[%clk 00:00:12]} {[%emt 00:00:03]} 51. Rb1 {[%clk 00:00:06]}
{[%emt 00:00:03]} d2 {[%clk 00:00:12]} {[%emt 00:00:03]} 52. Rb6+ {[%clk
00:00:07]} Kg7 {[%clk 00:00:12]} {[%emt 00:00:01]} 53. Rd6 {[%clk 00:00:09]}
Rd3 {[%clk 00:00:14]} 0-1

[Event "Grandmaster Triathlon - Blitz (GM1)"]
[Site "Biel, Switzerland"]
[Date "2026.07.19"]
[Round "8.3"]
[White "Bluebaum, Matthias"]
[Black "Le, Quang Liem"]
[Result "1/2-1/2"]
[TimeControl "3 min + 2 sec"]
[WhiteTitle "-"]
[BlackTitle "-"]
[WhiteFideId "24651516"]
[BlackFideId "12401137"]
[WhiteElo "2634"]
[BlackElo "2690"]

1. d4 {[%clk 00:03:03]} d5 {[%clk 00:03:04]} {[%emt 00:00:01]} 2. c4 {[%clk
00:03:04]} e6 {[%clk 00:03:05]} 3. Nc3 {[%clk 00:03:06]} Be7 {[%clk 00:03:06]}
4. Nf3 {[%clk 00:03:07]} Nf6 {[%clk 00:03:07]} 5. cxd5 {[%clk 00:03:08]} exd5
{[%clk 00:03:08]} 6. Bf4 {[%clk 00:03:09]} c6 {[%clk 00:03:09]} 7. h3 {[%clk
00:03:10]} {[%emt 00:00:01]} Bf5 {[%clk 00:03:06]} {[%emt 00:00:05]} 8. g4
{[%clk 00:03:09]} {[%emt 00:00:03]} Bg6 {[%clk 00:03:07]} 9. e3 {[%clk
00:03:09]} {[%emt 00:00:03]} Nbd7 {[%clk 00:03:04]} {[%emt 00:00:05]} 10. Nh4
{[%clk 00:03:04]} {[%emt 00:00:07]} Qb6 {[%clk 00:02:48]} {[%emt 00:00:18]} 11.
Qe2 {[%clk 00:02:59]} {[%emt 00:00:07]} Be4 {[%clk 00:02:24]} {[%emt 00:00:25]}
12. Rg1 {[%clk 00:02:30]} {[%emt 00:00:31]} h6 {[%clk 00:02:23]} {[%emt
00:00:02]} 13. Nf5 {[%clk 00:02:25]} {[%emt 00:00:08]} Bxf5 {[%clk 00:02:20]}
{[%emt 00:00:06]} 14. gxf5 {[%clk 00:02:26]} {[%emt 00:00:01]} Rg8 {[%clk
00:02:20]} {[%emt 00:00:01]} 15. O-O-O {[%clk 00:02:22]} {[%emt 00:00:06]}
O-O-O {[%clk 00:02:13]} {[%emt 00:00:09]} 16. Kb1 {[%clk 00:02:23]} {[%emt
00:00:01]} Qa5 {[%clk 00:02:10]} {[%emt 00:00:04]} 17. Qc2 {[%clk 00:02:10]}
{[%emt 00:00:15]} Nb6 {[%clk 00:02:10]} {[%emt 00:00:02]} 18. Rc1 {[%clk
00:01:54]} {[%emt 00:00:18]} Bd6 {[%clk 00:02:08]} {[%emt 00:00:04]} 19. Bxd6
{[%clk 00:01:30]} {[%emt 00:00:26]} Rxd6 {[%clk 00:02:10]} 20. Qb3 {[%clk
00:01:31]} Kb8 {[%clk 00:02:07]} {[%emt 00:00:04]} 21. Bd3 {[%clk 00:01:32]}
{[%emt 00:00:01]} Rd7 {[%clk 00:02:01]} {[%emt 00:00:08]} 22. Rc2 {[%clk
00:01:31]} {[%emt 00:00:02]} Rc7 {[%clk 00:01:51]} {[%emt 00:00:12]} 23. a3
{[%clk 00:01:21]} {[%emt 00:00:12]} a6 {[%clk 00:01:49]} {[%emt 00:00:04]} 24.
Rgc1 {[%clk 00:01:20]} {[%emt 00:00:03]} c5 {[%clk 00:01:45]} {[%emt 00:00:06]}
25. dxc5 {[%clk 00:01:20]} {[%emt 00:00:02]} Rxc5 {[%clk 00:01:45]} {[%emt
00:00:02]} 26. Qa2 {[%clk 00:01:10]} {[%emt 00:00:13]} Nc4 {[%clk 00:01:39]}
{[%emt 00:00:07]} 27. Ka1 {[%clk 00:00:59]} {[%emt 00:00:13]} Rc7 {[%clk
00:01:27]} {[%emt 00:00:14]} 28. Nxd5 {[%clk 00:00:55]} {[%emt 00:00:06]} Qxd5
{[%clk 00:01:25]} {[%emt 00:00:03]} 29. Bxc4 {[%clk 00:00:55]} {[%emt
00:00:02]} Qxf5 {[%clk 00:01:24]} {[%emt 00:00:03]} 30. Qb3 {[%clk 00:00:46]}
{[%emt 00:00:12]} Ka7 {[%clk 00:01:10]} {[%emt 00:00:15]} 31. Bxa6 {[%clk
00:00:44]} {[%emt 00:00:05]} Rd7 {[%clk 00:01:04]} {[%emt 00:00:07]} 32. Rc7
{[%clk 00:00:44]} {[%emt 00:00:02]} Rb8 {[%clk 00:01:04]} {[%emt 00:00:03]} 33.
Bxb7 {[%clk 00:00:37]} {[%emt 00:00:09]} Qa5 {[%clk 00:00:54]} {[%emt
00:00:11]} 34. R7c5 {[%clk 00:00:05]} {[%emt 00:00:35]} Qa6 {[%clk 00:00:52]}
{[%emt 00:00:05]} 35. Bxa6 {[%clk 00:00:05]} {[%emt 00:00:02]} Rxb3 {[%clk
00:00:53]} 36. Bc4 {[%clk 00:00:06]} {[%emt 00:00:01]} Rb6 {[%clk 00:00:54]} 37.
b4 {[%clk 00:00:07]} {[%emt 00:00:02]} Ne4 {[%clk 00:00:55]} 38. Re5 {[%clk
00:00:08]} {[%emt 00:00:02]} Nxf2 {[%clk 00:00:55]} {[%emt 00:00:02]} 39. Rf1
{[%clk 00:00:08]} {[%emt 00:00:02]} Nxh3 {[%clk 00:00:53]} {[%emt 00:00:04]} 40.
Rxf7 {[%clk 00:00:09]} Rxf7 {[%clk 00:00:54]} {[%emt 00:00:01]} 41. Bxf7 {[%clk
00:00:11]} Ng5 {[%clk 00:00:54]} {[%emt 00:00:02]} 42. Bd5 {[%clk 00:00:12]}
{[%emt 00:00:01]} Rd6 {[%clk 00:00:52]} {[%emt 00:00:04]} 43. Kb2 {[%clk
00:00:11]} {[%emt 00:00:03]} Kb6 {[%clk 00:00:48]} {[%emt 00:00:06]} 44. a4
{[%clk 00:00:12]} {[%emt 00:00:01]} Rd7 {[%clk 00:00:47]} {[%emt 00:00:03]} 45.
a5+ {[%clk 00:00:11]} {[%emt 00:00:03]} Kc7 {[%clk 00:00:48]} 46. b5 {[%clk
00:00:11]} {[%emt 00:00:02]} Kd6 {[%clk 00:00:50]} 47. Rf5 {[%clk 00:00:12]}
{[%emt 00:00:02]} g6 {[%clk 00:00:50]} {[%emt 00:00:01]} 48. Rf6+ {[%clk
00:00:06]} {[%emt 00:00:08]} Kxd5 {[%clk 00:00:51]} 49. Rxg6 {[%clk 00:00:07]}
Ne4 {[%clk 00:00:43]} {[%emt 00:00:10]} 50. Rxh6 {[%clk 00:00:08]} {[%emt
00:00:01]} Nd6 {[%clk 00:00:44]} {[%emt 00:00:01]} 51. b6 {[%clk 00:00:05]}
{[%emt 00:00:05]} Kc6 {[%clk 00:00:42]} {[%emt 00:00:03]} 52. Kb3 {[%clk
00:00:06]} {[%emt 00:00:02]} Re7 {[%clk 00:00:44]} 53. Kb4 {[%clk 00:00:05]}
{[%emt 00:00:04]} Re4+ {[%clk 00:00:44]} 54. Kc3 {[%clk 00:00:05]} {[%emt
00:00:02]} Rxe3+ {[%clk 00:00:45]} 55. Kd4 {[%clk 00:00:06]} Rb3 {[%clk
00:00:44]} {[%emt 00:00:03]} 56. Rg6 {[%clk 00:00:07]} {[%emt 00:00:02]} Rb4+
{[%clk 00:00:45]} {[%emt 00:00:01]} 57. Kc3 {[%clk 00:00:05]} {[%emt 00:00:04]}
Rb5 {[%clk 00:00:46]} 58. b7 {[%clk 00:00:04]} {[%emt 00:00:03]} Rxb7 {[%clk
00:00:46]} {[%emt 00:00:01]} 59. a6 {[%clk 00:00:05]} Ra7 {[%clk 00:00:46]}
{[%emt 00:00:02]} 60. Rh6 {[%clk 00:00:06]} {[%emt 00:00:01]} Rxa6 {[%clk
00:00:47]} 61. Rh8 {[%clk 00:00:07]} {[%emt 00:00:01]} Ra3+ {[%clk 00:00:46]}
{[%emt 00:00:02]} 62. Kd4 {[%clk 00:00:08]} Ra4+ {[%clk 00:00:48]} 63. Kd3
{[%clk 00:00:09]} Nf7 {[%clk 00:00:47]} {[%emt 00:00:03]} 64. Rh5 {[%clk
00:00:10]} {[%emt 00:00:01]} Kd6 {[%clk 00:00:48]} 65. Kc3 {[%clk 00:00:09]}
{[%emt 00:00:03]} Ne5 {[%clk 00:00:49]} {[%emt 00:00:01]} 66. Rh8 {[%clk
00:00:10]} {[%emt 00:00:01]} Kc5 {[%clk 00:00:48]} {[%emt 00:00:02]} 67. Rc8+
{[%clk 00:00:11]} {[%emt 00:00:01]} Nc6 {[%clk 00:00:50]} 68. Kd3 {[%clk
00:00:12]} Kd5 {[%clk 00:00:50]} 69. Ke3 {[%clk 00:00:12]} {[%emt 00:00:03]}
Re4+ {[%clk 00:00:49]} {[%emt 00:00:02]} 70. Kd3 {[%clk 00:00:10]} {[%emt
00:00:04]} Ne5+ {[%clk 00:00:48]} {[%emt 00:00:03]} 71. Kc3 {[%clk 00:00:11]}
{[%emt 00:00:01]} Re3+ {[%clk 00:00:49]} 72. Kc2 {[%clk 00:00:11]} {[%emt
00:00:03]} Rh3 {[%clk 00:00:48]} {[%emt 00:00:03]} 73. Rd8+ {[%clk 00:00:11]}
{[%emt 00:00:02]} Kc5 {[%clk 00:00:48]} {[%emt 00:00:02]} 74. Rc8+ {[%clk
00:00:12]} Kd4 {[%clk 00:00:47]} {[%emt 00:00:03]} 75. Rd8+ {[%clk 00:00:13]}
Ke4 {[%clk 00:00:48]} 76. Re8 {[%clk 00:00:15]} {[%emt 00:00:01]} Re3 {[%clk
00:00:49]} 77. Kd2 {[%clk 00:00:14]} {[%emt 00:00:03]} Rd3+ {[%clk 00:00:49]}
{[%emt 00:00:01]} 78. Kc2 {[%clk 00:00:15]} {[%emt 00:00:01]} Rd5 {[%clk
00:00:50]} 79. Kc3 {[%clk 00:00:13]} {[%emt 00:00:05]} Rc5+ {[%clk 00:00:46]}
{[%emt 00:00:06]} 80. Kd2 {[%clk 00:00:13]} {[%emt 00:00:02]} Rc7 {[%clk
00:00:43]} {[%emt 00:00:05]} 81. Re6 {[%clk 00:00:14]} {[%emt 00:00:02]} Kd5
{[%clk 00:00:43]} {[%emt 00:00:02]} 82. Re8 {[%clk 00:00:14]} {[%emt 00:00:01]}
Nc6 {[%clk 00:00:40]} {[%emt 00:00:05]} 83. Ke3 {[%clk 00:00:13]} {[%emt
00:00:04]} Rh7 {[%clk 00:00:40]} 84. Rg8 {[%clk 00:00:07]} {[%emt 00:00:09]}
Rh3+ {[%clk 00:00:33]} {[%emt 00:00:08]} 85. Kd2 {[%clk 00:00:08]} {[%emt
00:00:01]} Kc4 {[%clk 00:00:30]} {[%emt 00:00:05]} 86. Rc8 {[%clk 00:00:09]}
{[%emt 00:00:01]} Kd5 {[%clk 00:00:30]} {[%emt 00:00:02]} 87. Rg8 {[%clk
00:00:10]} Ra3 {[%clk 00:00:31]} {[%emt 00:00:01]} 88. Ke2 {[%clk 00:00:10]}
{[%emt 00:00:02]} Ke4 {[%clk 00:00:30]} {[%emt 00:00:03]} 89. Rg4+ {[%clk
00:00:11]} {[%emt 00:00:02]} Ke5 {[%clk 00:00:30]} {[%emt 00:00:01]} 90. Rg8
{[%clk 00:00:11]} {[%emt 00:00:01]} Nd4+ {[%clk 00:00:27]} {[%emt 00:00:05]} 91.
Kd2 {[%clk 00:00:12]} {[%emt 00:00:01]} Nf5 {[%clk 00:00:28]} {[%emt 00:00:01]}
92. Re8+ {[%clk 00:00:12]} {[%emt 00:00:02]} Kd5 {[%clk 00:00:29]} 93. Rd8+
{[%clk 00:00:13]} {[%emt 00:00:01]} Nd6 {[%clk 00:00:30]} 94. Ke2 {[%clk
00:00:13]} {[%emt 00:00:02]} Ke5 {[%clk 00:00:30]} {[%emt 00:00:01]} 95. Rh8
{[%clk 00:00:11]} {[%emt 00:00:05]} Kd4 {[%clk 00:00:27]} {[%emt 00:00:05]} 96.
Rd8 {[%clk 00:00:12]} {[%emt 00:00:01]} Re3+ {[%clk 00:00:27]} {[%emt
00:00:02]} 97. Kf2 {[%clk 00:00:10]} {[%emt 00:00:04]} Re6 {[%emt 00:00:03]} 98.
Ra8 {[%clk 00:00:09]} Ne4+ {[%clk 00:00:28]} {[%emt 00:00:01]} 99. Ke2 {[%clk
00:00:07]} {[%emt 00:00:05]} Nc3+ {[%clk 00:00:25]} {[%emt 00:00:04]} 100. Kf3
{[%clk 00:00:08]} {[%emt 00:00:01]} Rf6+ {[%clk 00:00:27]} 101. Kg4 {[%clk
00:00:10]} Nd5 {[%clk 00:00:26]} {[%emt 00:00:02]} 102. Ra4+ {[%clk 00:00:10]}
{[%emt 00:00:02]} Ke5 {[%clk 00:00:27]} 103. Ra5 {[%clk 00:00:11]} {[%emt
00:00:01]} Rf8 {[%clk 00:00:26]} {[%emt 00:00:03]} 104. Rb5 {[%clk 00:00:12]}
{[%emt 00:00:02]} Ke4 {[%clk 00:00:27]} 105. Kg3 {[%clk 00:00:09]} {[%emt
00:00:04]} Ne3 {[%clk 00:00:22]} {[%emt 00:00:07]} 106. Rb4+ {[%clk 00:00:11]}
{[%emt 00:00:01]} Kd3 {[%clk 00:00:23]} 107. Rb3+ {[%clk 00:00:11]} {[%emt
00:00:02]} Kd4 {[%clk 00:00:24]} {[%emt 00:00:01]} 108. Rb4+ {[%clk 00:00:12]}
{[%emt 00:00:01]} Ke5 {[%clk 00:00:22]} {[%emt 00:00:04]} 109. Rb5+ {[%clk
00:00:12]} {[%emt 00:00:02]} Nd5 {[%clk 00:00:23]} 110. Kg4 {[%clk 00:00:13]}
{[%emt 00:00:02]} Ke4 {[%clk 00:00:24]} {[%emt 00:00:02]} 1/2-1/2

[Event "Grandmaster Triathlon - Blitz (GM1)"]
[Site "Biel, Switzerland"]
[Date "2026.07.19"]
[Round "9.1"]
[White "Martinez Alcantara, Jose Eduardo"]
[Black "Le, Quang Liem"]
[Result "0-1"]
[TimeControl "3 min + 2 sec"]
[WhiteTitle "-"]
[BlackTitle "-"]
[WhiteFideId "3805662"]
[BlackFideId "12401137"]
[WhiteElo "2641"]
[BlackElo "2690"]

1. e4 {[%clk 00:03:03]} {[%emt 00:00:01]} e5 {[%clk 00:03:03]} {[%emt
00:00:01]} 2. Nf3 {[%clk 00:03:04]} {[%emt 00:00:01]} Nc6 {[%clk 00:03:04]} 3.
Nc3 {[%clk 00:03:05]} {[%emt 00:00:01]} Nf6 {[%clk 00:03:05]} {[%emt 00:00:01]}
4. h3 {[%clk 00:03:06]} {[%emt 00:00:01]} d5 {[%clk 00:03:06]} {[%emt
00:00:01]} 5. exd5 {[%clk 00:03:07]} Nxd5 {[%clk 00:03:07]} {[%emt 00:00:01]} 6.
Bb5 {[%clk 00:03:08]} Nxc3 {[%clk 00:03:07]} {[%emt 00:00:02]} 7. bxc3 {[%clk
00:03:09]} {[%emt 00:00:01]} Bd6 {[%clk 00:03:08]} {[%emt 00:00:01]} 8. O-O
{[%clk 00:03:09]} {[%emt 00:00:02]} O-O {[%clk 00:03:08]} {[%emt 00:00:02]} 9.
d4 {[%clk 00:03:11]} Bd7 {[%clk 00:03:06]} {[%emt 00:00:04]} 10. Rb1 {[%clk
00:03:07]} {[%emt 00:00:06]} Re8 {[%clk 00:02:57]} {[%emt 00:00:11]} 11. Bg5
{[%clk 00:03:05]} {[%emt 00:00:03]} Qc8 {[%clk 00:02:54]} {[%emt 00:00:05]} 12.
Re1 {[%clk 00:02:59]} {[%emt 00:00:08]} e4 {[%clk 00:02:21]} {[%emt 00:00:36]}
13. Nd2 {[%clk 00:02:57]} {[%emt 00:00:03]} h6 {[%clk 00:02:07]} {[%emt
00:00:16]} 14. Be3 {[%clk 00:02:35]} {[%emt 00:00:24]} Bxh3 {[%clk 00:01:43]}
{[%emt 00:00:26]} 15. d5 {[%clk 00:01:59]} {[%emt 00:00:38]} Bg4 {[%clk
00:01:40]} {[%emt 00:00:04]} 16. f3 {[%clk 00:01:43]} {[%emt 00:00:18]} exf3
{[%clk 00:01:41]} {[%emt 00:00:01]} 17. gxf3 {[%clk 00:01:45]} Rxe3 {[%clk
00:01:28]} {[%emt 00:00:15]} 18. Rxe3 {[%clk 00:01:46]} {[%emt 00:00:01]} Bc5
{[%clk 00:01:26]} {[%emt 00:00:03]} 19. Nc4 {[%clk 00:01:21]} {[%emt 00:00:27]}
Na5 {[%clk 00:01:18]} {[%emt 00:00:10]} 20. Kh1 {[%clk 00:00:44]} {[%emt
00:00:40]} Bd7 {[%clk 00:00:56]} {[%emt 00:00:24]} 21. Re2 {[%clk 00:00:14]}
{[%emt 00:00:32]} Nxc4 {[%clk 00:00:44]} {[%emt 00:00:14]} 22. Bxc4 {[%clk
00:00:15]} {[%emt 00:00:01]} Qd8 {[%clk 00:00:42]} {[%emt 00:00:04]} 23. Rh2
{[%clk 00:00:16]} {[%emt 00:00:01]} Qf6 {[%clk 00:00:37]} {[%emt 00:00:06]} 24.
Bb5 {[%clk 00:00:06]} {[%emt 00:00:13]} Bxb5 {[%clk 00:00:30]} {[%emt
00:00:09]} 25. Rxb5 {[%clk 00:00:07]} Bd6 {[%clk 00:00:31]} {[%emt 00:00:01]}
26. Rh3 {[%emt 00:00:05]} Re8 {[%clk 00:00:31]} 27. Rxb7 {[%clk 00:00:04]}
{[%emt 00:00:04]} Re3 {[%clk 00:00:23]} {[%emt 00:00:10]} 28. Rb1 {[%clk
00:00:04]} {[%emt 00:00:02]} Qxc3 {[%clk 00:00:20]} {[%emt 00:00:05]} 29. Kg2
{[%clk 00:00:04]} {[%emt 00:00:02]} Qe5 {[%clk 00:00:20]} 30. Kf1 {[%clk
00:00:04]} {[%emt 00:00:03]} Qf5 {[%clk 00:00:21]} {[%emt 00:00:01]} 31. Kg2
{[%clk 00:00:03]} {[%emt 00:00:03]} g6 {[%clk 00:00:19]} {[%emt 00:00:03]} 32.
Rb3 {[%clk 00:00:05]} {[%emt 00:00:01]} Re5 {[%clk 00:00:19]} {[%emt 00:00:02]}
33. Qd2 {[%clk 00:00:03]} {[%emt 00:00:04]} h5 {[%clk 00:00:20]} {[%emt
00:00:01]} 34. Rh4 {[%clk 00:00:03]} {[%emt 00:00:02]} Rxd5 {[%clk 00:00:20]}
{[%emt 00:00:01]} 35. Rd4 {[%clk 00:00:04]} {[%emt 00:00:01]} Re5 {[%clk
00:00:20]} {[%emt 00:00:02]} 36. Kf1 {[%clk 00:00:03]} {[%emt 00:00:03]} Kh7
{[%clk 00:00:21]} {[%emt 00:00:01]} 37. Kg2 {[%clk 00:00:05]} Qe6 {[%clk
00:00:22]} 38. Kf1 {[%clk 00:00:04]} {[%emt 00:00:02]} Qh3+ {[%clk 00:00:22]}
{[%emt 00:00:01]} 39. Kg1 {[%clk 00:00:03]} {[%emt 00:00:03]} Bc5 {[%clk
00:00:22]} {[%emt 00:00:02]} 40. Rbd3 {[%clk 00:00:03]} {[%emt 00:00:02]} Bxd4+
{[%clk 00:00:22]} {[%emt 00:00:02]} 41. Rxd4 {[%clk 00:00:04]} {[%emt
00:00:01]} Qxf3 {[%clk 00:00:23]} {[%emt 00:00:01]} 42. Rf4 {[%clk 00:00:06]}
Rg5+ {[%clk 00:00:24]} {[%emt 00:00:01]} 0-1